[Event "SWE-ch 2019"]
[Site "Eskilstuna"]
[Date "2019.07.11"]
[Round "6.4"]
[White "Hector, Jonny"]
[Black "Smith, Axel"]
[Result "1/2-1/2"]
[ECO "C02"]
[WhiteElo "2487"]
[BlackElo "2469"]
[Annotator "ChessBase"]
[PlyCount "128"]
[EventDate "2019.07.06"]
[EventType "tourn"]
[EventCountry "SWE"]
[SourceTitle "playchess.com"]
[Source "ChessBase"]
[SourceQuality "1"]
[TimeControl "40/5400+30:1800+30"]

1. e4 {[%emt 0:00:00]} e6 {[%emt 0:00:00]} 2. d4 {[%emt 0:00:07]} d5 {[%emt 0:00:00]} 3. e5 {[%emt 0:00:15]} c5 {[%emt 0:00:00]} 4. c3 {[%emt 0:00:10]} Nc6 {[%emt 0:00:00]} 5. Nf3 {[%emt 0:00:22]} Nge7 {[%emt 0:00:00]} 6. a3 {[%emt 0:05:27]} cxd4 {[%emt 0:05:29]} 7. cxd4 {[%emt 0:00:26]} Nf5 {[%emt 0:00:18]} 8. Nc3 {[%emt 0:06:14]} Be7 {[%emt 0:02:08]} 9. b4 {[%emt 0:06:59]} Bd7 {[%emt 0:04:47]} 10. Bd3 {[%emt 0:07:09]} a5 {[%emt 0:35:13]} 11. Bxf5 {[%emt 0:10:00]} axb4 {[%emt 0:01:18]} 12. Nxd5 {[%emt 0:10:39]} exd5 {[%emt 0:00:10]} 13. Bxd7+ {[%emt 0:04:10]} Qxd7 {[%emt 0:00:01]} 14. a4 {[%emt 0:00:38]} O-O {[%emt 0:05:15]} 15. Be3 {[%emt 0:05:43]} Ra6 {[%emt 0:01:17]} 16. Nd2 {[%emt 0:03:51]} Rfa8 {[%emt 0:06:59]} 17. O-O {[%emt 0:01:08]} b5 {[%emt 0:01:49]} 18. a5 {[%emt 0:00:07]} Nxa5 {[%emt 0:01:01]} 19. Nb3 {[%emt 0:02:39]} Nc4 {[%emt 0:05:31]} 20. Rb1 {[%emt 0:04:07]} Qf5 {[%emt 0:02:30]} 21. Nc5 {[%emt 0:03:29]} Bxc5 {[%emt 0:12:38]} 22. dxc5 {[%emt 0:00:35]} Nxe3 {[%emt 0:02:14]} 23. fxe3 {[%emt 0:00:07]} Qxe5 {[%emt 0:00:02]} 24. Qd4 {[%emt 0:00:27]} Qg5 {[%emt 0:01:21]} 25. h4 {[%emt 0:03:01]} Qe7 {[%emt 0:00:25]} 26. Rxb4 {[%emt 0:02:00]} Ra4 {[%emt 0:01:36]} 27. Rfb1 {[%emt 0:01:10]} Rc8 {[%emt 0:04:42]} 28. Qxd5 {[%emt 0:07:26]} Qxe3+ {[%emt 0:00:37]} 29. Kh2 {[%emt 0:00:12]} h6 {[%emt 0:02:19]} 30. c6 {[%emt 0:01:17]} Qe8 {[%emt 0:01:42]} 31. Qxb5 {[%emt 0:03:31]} Rxb4 {[%emt 0:00:02]} 32. Rxb4 {[%emt 0:00:12]} Rxc6 {[%emt 0:01:08]} 33. Rc4 {[%emt 0:00:39]} Rc8 {[%emt 0:00:26]} 34. Qxe8+ {[%emt 0:00:26]} Rxe8 {[%emt 0:00:02]} 35. Kg3 {[%emt 0:01:30]} Re5 {[%emt 0:00:16]} 36. Kf4 {[%emt 0:00:43]} Rd5 {[%emt 0:00:59]} 37. g3 {[%emt 0:02:06]} Kh7 {[%emt 0:00:34]} 38. Rc6 {[%emt 0:01:43]} Ra5 {[%emt 0:01:13]} 39. Kg4 {[%emt 0:00:57]} g6 {[%emt 0:00:46]} 40. Kf3 {[%emt 0:00:44]} Kg7 {[%emt 0:00:08]} 41. Kf2 {[%emt 0:30:36]} Ra3 {[%emt 0:30:42]} 42. Kg2 {[%emt 0:00:26]} Re3 {[%emt 0:00:13]} 43. Ra6 {[%emt 0:00:26]} Re6 {[%emt 0:01:43]} 44. Ra3 {[%emt 0:00:28]} Kf6 {[%emt 0:00:06]} 45. Rf3+ {[%emt 0:00:27]} Ke7 {[%emt 0:00:02]} 46. Ra3 {[%emt 0:00:13]} Re4 {[%emt 0:00:27]} 47. Ra6 {[%emt 0:00:59]} Rd4 {[%emt 0:00:09]} 48. Rb6 {[%emt 0:01:26]} Rd6 {[%emt 0:00:03]} 49. Rb3 {[%emt 0:00:27]} Ke6 {[%emt 0:00:03]} 50. Re3+ {[%emt 0:00:17]} Kf6 {[%emt 0:00:29]} 51. Rf3+ {[%emt 0:01:32]} Kg7 {[%emt 0:00:01]} 52. Ra3 {[%emt 0:00:27]} Rd4 {[%emt 0:00:03]} 53. Ra6 {[%emt 0:00:20]} Rd3 {[%emt 0:03:30]} 54. Kf2 {[%emt 0:00:13]} f5 {[%emt 0:01:49]} 55. Ra7+ {[%emt 0:02:30]} Kf6 {[%emt 0:00:04]} 56. Ra6+ {[%emt 0:00:06]} Kf7 {[%emt 0:00:04]} 57. h5 {[%emt 0:00:22]} gxh5 {[%emt 0:01:29]} 58. Rxh6 {[%emt 0:00:16]} Rd2+ {[%emt 0:00:12]} 59. Kg1 {[%emt 0:00:23]} f4 {[%emt 0:00:51]} 60. gxf4 {[%emt 0:00:38]} Rd4 {[%emt 0:00:03]} 61. Rxh5 {[%emt 0:00:55]} Rxf4 {[%emt 0:00:05]} 62. Rh2 {[%emt 0:00:11]} Kf6 {[%emt 0:00:10]} 63. Rf2 {[%emt 0:00:06]} Kf5 {[%emt 0:00:05]} 64. Rxf4+ {[%emt 0:00:05]} Kxf4 {[%emt 0:00:04]} 1/2-1/2

[Event "SWE-ch 2019"]
[Site "Eskilstuna"]
[Date "2019.07.12"]
[Round "7.1"]
[White "Wiedenkeller, Michael"]
[Black "Hillarp Persson, Tiger"]
[Result "1/2-1/2"]
[ECO "A61"]
[WhiteElo "2461"]
[BlackElo "2562"]
[Annotator "ChessBase"]
[PlyCount "119"]
[EventDate "2019.07.06"]
[EventType "tourn"]
[EventCountry "SWE"]
[SourceTitle "playchess.com"]
[Source "ChessBase"]
[SourceQuality "1"]
[TimeControl "40/5400+30:1800+30"]

1. d4 {[%emt 0:00:00]} e6 {[%emt 0:00:00]} 2. c4 {[%emt 0:00:12]} c5 {[%emt 0:00:00]} 3. d5 {[%emt 0:00:18]} exd5 {[%emt 0:00:00]} 4. cxd5 {[%emt 0:00:07]} d6 {[%emt 0:00:03]} 5. Nc3 {[%emt 0:00:37]} g6 {[%emt 0:00:07]} 6. Nf3 {[%emt 0:00:51]} a6 {[%emt 0:02:09]} 7. a4 {[%emt 0:00:53]} Bg7 {[%emt 0:00:34]} 8. Bf4 {[%emt 0:00:53]} Nf6 {[%emt 0:00:24]} 9. h3 {[%emt 0:00:17]} O-O {[%emt 0:02:53]} 10. e3 {[%emt 0:00:13]} Qe7 {[%emt 0:15:31]} 11. Be2 {[%emt 0:03:22]} Nbd7 {[%emt 0:00:20]} 12. O-O {[%emt 0:01:30]} Rb8 {[%emt 0:01:36]} 13. a5 {[%emt 0:09:29]} Ne8 {[%emt 0:05:48]} 14. Na4 {[%emt 0:05:47]} Nc7 {[%emt 0:05:30]} 15. Rc1 {[%emt 0:08:58]} b5 {[%emt 0:12:38]} 16. axb6 {[%emt 0:17:27]} Nxb6 {[%emt 0:00:28]} 17. Nxc5 {[%emt 0:01:01]} Nbxd5 {[%emt 0:02:28]} 18. Nd3 {[%emt 0:08:10]} Nxf4 {[%emt 0:00:43]} 19. exf4 {[%emt 0:06:12]} Bf5 {[%emt 0:03:49]} 20. Re1 {[%emt 0:02:58]} Ne6 {[%emt 0:03:52]} 21. Rc6 {[%emt 0:04:39]} a5 {[%emt 0:06:58]} 22. Qd2 {[%emt 0:06:08]} Qd8 {[%emt 0:19:45]} 23. Bd1 {[%emt 0:09:42]} Bxd3 {[%emt 0:02:40]} 24. Qxd3 {[%emt 0:00:02]} Nxf4 {[%emt 0:00:12]} 25. Qd2 {[%emt 0:01:33]} Be5 {[%emt 0:01:28]} 26. b3 {[%emt 0:02:25]} Rb5 {[%emt 0:04:09]} 27. Qc2 {[%emt 0:02:57]} Qb8 {[%emt 0:01:16]} 28. g3 {[%emt 0:01:15]} Ne6 {[%emt 0:01:08]} 29. Re3 {[%emt 0:00:27]} Nd4 {[%emt 0:02:22]} 30. Nxd4 {[%emt 0:00:36]} Bxd4 {[%emt 0:00:12]} 31. Rd3 {[%emt 0:01:38]} Bc5 {[%emt 0:00:39]} 32. Qc4 {[%emt 0:01:56]} Rb4 {[%emt 0:02:09]} 33. Qd5 {[%emt 0:00:25]} Qe8 {[%emt 0:00:39]} 34. Kf1 {[%emt 0:00:57]} Re4 {[%emt 0:01:29]} 35. Rc7 {[%emt 0:01:39]} Re5 {[%emt 0:00:50]} 36. Qc6 {[%emt 0:00:42]} Qe6 {[%emt 0:01:27]} 37. Kg2 {[%emt 0:00:29]} Rf5 {[%emt 0:00:37]} 38. Rf3 {[%emt 0:00:53]} Rd5 {[%emt 0:01:04]} 39. Re7 {[%emt 0:01:16]} Qxe7 {[%emt 0:00:08]} 40. Qxd5 {[%emt 0:00:02]} Kg7 {[%emt 0:00:44]} 41. Bc2 {[%emt 0:04:45]} f5 {[%emt 0:01:41]} 42. Bd3 {[%emt 0:00:26]} Qf7 {[%emt 0:04:42]} 43. Qxf7+ {[%emt 0:03:03]} Rxf7 {[%emt 0:00:09]} 44. g4 {[%emt 0:01:41]} f4 {[%emt 0:00:22]} 45. Bc4 {[%emt 0:00:35]} Rf8 {[%emt 0:00:18]} 46. h4 {[%emt 0:02:08]} h6 {[%emt 0:00:56]} 47. Rd3 {[%emt 0:00:34]} Rb8 {[%emt 0:06:21]} 48. Rd2 {[%emt 0:01:40]} Re8 {[%emt 0:04:30]} 49. Re2 {[%emt 0:00:48]} Rxe2 {[%emt 0:00:27]} 50. Bxe2 {[%emt 0:00:02]} Kf6 {[%emt 0:00:10]} 51. Bd3 {[%emt 0:02:57]} g5 {[%emt 0:00:26]} 52. hxg5+ {[%emt 0:00:11]} hxg5 {[%emt 0:00:24]} 53. Kf3 {[%emt 0:02:29]} Ke5 {[%emt 0:00:07]} 54. Bh7 {[%emt 0:00:37]} Kd4 {[%emt 0:04:42]} 55. Ke2 {[%emt 0:01:48]} d5 {[%emt 0:01:10]} 56. Bg8 {[%emt 0:00:15]} Bb4 {[%emt 0:00:23]} 57. f3 {[%emt 0:00:20]} Bc3 {[%emt 0:00:13]} 58. Bf7 {[%emt 0:00:08]} Bb4 {[%emt 0:00:06]} 59. Bg8 {[%emt 0:00:05]} Bc3 {[%emt 0:00:05]} 60. Bf7 {[%emt 0:00:12]} 1/2-1/2

[Event "SWE-ch 2019"]
[Site "Eskilstuna"]
[Date "2019.07.12"]
[Round "7.2"]
[White "Kucuksari, Kaan"]
[Black "Blomqvist, Erik"]
[Result "1/2-1/2"]
[ECO "D04"]
[WhiteElo "2310"]
[BlackElo "2492"]
[Annotator "ChessBase"]
[PlyCount "81"]
[EventDate "2019.07.06"]
[EventType "tourn"]
[EventCountry "SWE"]
[SourceTitle "playchess.com"]
[Source "ChessBase"]
[SourceQuality "1"]
[TimeControl "40/5400+30:1800+30"]

1. d4 {[%emt 0:00:00]} Nf6 {[%emt 0:01:21]} 2. Nf3 {[%emt 0:00:00]} d5 {[%emt 0:00:17]} 3. e3 {[%emt 0:00:00]} c5 {[%emt 0:00:24]} 4. b3 {[%emt 0:00:02]} cxd4 {[%emt 0:03:06]} 5. exd4 {[%emt 0:00:04]} Bg4 {[%emt 0:01:03]} 6. h3 {[%emt 0:01:08]} Bxf3 {[%emt 0:01:12]} 7. Qxf3 {[%emt 0:00:03]} Nc6 {[%emt 0:00:10]} 8. c3 {[%emt 0:04:38]} e6 {[%emt 0:00:09]} 9. Bd3 {[%emt 0:00:50]} Be7 {[%emt 0:02:09]} 10. O-O {[%emt 0:00:33]} O-O {[%emt 0:00:34]} 11. Bf4 {[%emt 0:00:49]} Ne8 {[%emt 0:16:18]} 12. Nd2 {[%emt 0:00:43]} Bd6 {[%emt 0:05:32]} 13. Rfe1 {[%emt 0:02:59]} Bxf4 {[%emt 0:06:54]} 14. Qxf4 {[%emt 0:00:02]} Qf6 {[%emt 0:00:59]} 15. Qg3 {[%emt 0:04:02]} Rc8 {[%emt 0:03:07]} 16. Nf3 {[%emt 0:03:43]} g6 {[%emt 0:00:56]} 17. Bb5 {[%emt 0:05:25]} a6 {[%emt 0:09:36]} 18. Bxc6 {[%emt 0:00:20]} Rxc6 {[%emt 0:00:06]} 19. Ne5 {[%emt 0:05:14]} Rc7 {[%emt 0:00:29]} 20. c4 {[%emt 0:02:36]} dxc4 {[%emt 0:11:39]} 21. bxc4 {[%emt 0:00:20]} Qd8 {[%emt 0:00:04]} 22. c5 {[%emt 0:13:43]} Qxd4 {[%emt 0:09:32]} 23. Rad1 {[%emt 0:07:15]} Qb4 {[%emt 0:01:14]} 24. Re2 {[%emt 0:09:41]} f6 {[%emt 0:07:23]} 25. Nd7 {[%emt 0:02:06]} Qa4 {[%emt 0:02:56]} 26. Qb3 {[%emt 0:07:28]} Qxb3 {[%emt 0:00:12]} 27. axb3 {[%emt 0:00:01]} Rf7 {[%emt 0:00:14]} 28. Rxe6 {[%emt 0:00:37]} Rfxd7 {[%emt 0:00:03]} 29. Rxe8+ {[%emt 0:00:22]} Kf7 {[%emt 0:00:05]} 30. Rxd7+ {[%emt 0:05:30]} Rxd7 {[%emt 0:00:03]} 31. Rc8 {[%emt 0:00:21]} Ke6 {[%emt 0:03:01]} 32. c6 {[%emt 0:00:11]} Rd1+ {[%emt 0:00:46]} 33. Kh2 {[%emt 0:00:01]} bxc6 {[%emt 0:00:05]} 34. Rxc6+ {[%emt 0:00:07]} Rd6 {[%emt 0:00:04]} 35. Rc5 {[%emt 0:15:00]} Rb6 {[%emt 0:00:51]} 36. h4 {[%emt 0:01:38]} Kd6 {[%emt 0:00:37]} 37. Ra5 {[%emt 0:00:03]} Kc6 {[%emt 0:00:54]} 38. b4 {[%emt 0:01:11]} h5 {[%emt 0:06:44]} 39. g3 {[%emt 0:02:19]} Kd6 {[%emt 0:03:45]} 40. Kg2 {[%emt 0:00:11]} Rxb4 {[%emt 0:00:24]} 41. Rxa6+ {[%emt 0:30:07]} 1/2-1/2

[Event "SWE-ch 2019"]
[Site "Eskilstuna"]
[Date "2019.07.12"]
[Round "7.3"]
[White "Sagit, Rauan"]
[Black "Hector, Jonny"]
[Result "1-0"]
[ECO "D02"]
[WhiteElo "2429"]
[BlackElo "2487"]
[Annotator "ChessBase"]
[PlyCount "171"]
[EventDate "2019.07.06"]
[EventType "tourn"]
[EventCountry "SWE"]
[SourceTitle "playchess.com"]
[Source "ChessBase"]
[SourceQuality "1"]
[TimeControl "40/5400+30:1800+30"]

1. Nf3 {[%emt 0:00:00]} d5 {[%emt 0:00:53]} 2. g3 {[%emt 0:00:26]} Nc6 {[%emt 0:00:25]} 3. d4 {[%emt 0:00:20]} Bf5 {[%emt 0:00:49]} 4. Bg2 {[%emt 0:00:52]} Nb4 {[%emt 0:01:10]} 5. Na3 {[%emt 0:00:35]} e6 {[%emt 0:00:30]} 6. c3 {[%emt 0:04:56]} Nc6 {[%emt 0:00:12]} 7. Qb3 {[%emt 0:01:06]} Rb8 {[%emt 0:00:18]} 8. Nh4 {[%emt 0:04:33]} Be4 {[%emt 0:06:40]} 9. f3 {[%emt 0:01:40]} Bg6 {[%emt 0:00:14]} 10. Nxg6 {[%emt 0:00:28]} hxg6 {[%emt 0:00:11]} 11. e4 {[%emt 0:01:46]} b5 {[%emt 0:08:30]} 12. Bf4 {[%emt 0:05:27]} b4 {[%emt 0:08:33]} 13. Qa4 {[%emt 0:02:58]} Qd7 {[%emt 0:06:47]} 14. Nb5 {[%emt 0:03:49]} Rb7 {[%emt 0:01:53]} 15. Nxc7+ {[%emt 0:16:45]} Rxc7 {[%emt 0:00:47]} 16. Bxc7 {[%emt 0:02:37]} Qxc7 {[%emt 0:00:07]} 17. exd5 {[%emt 0:00:55]} exd5 {[%emt 0:00:19]} 18. O-O {[%emt 0:01:04]} Qd7 {[%emt 0:04:49]} 19. Rfe1+ {[%emt 0:02:12]} Be7 {[%emt 0:02:14]} 20. Bf1 {[%emt 0:02:28]} Kf8 {[%emt 0:05:57]} 21. Bb5 {[%emt 0:05:13]} Qh3 {[%emt 0:00:40]} 22. Re2 {[%emt 0:01:41]} Nd8 {[%emt 0:09:34]} 23. Qxa7 {[%emt 0:01:32]} g5 {[%emt 0:00:41]} 24. Rae1 {[%emt 0:06:47]} g6 {[%emt 0:01:36]} 25. Rg2 {[%emt 0:01:15]} Qc8 {[%emt 0:03:47]} 26. Re3 {[%emt 0:10:51]} bxc3 {[%emt 0:04:23]} 27. bxc3 {[%emt 0:00:52]} Kg7 {[%emt 0:04:00]} 28. Qb6 {[%emt 0:06:03]} Ne6 {[%emt 0:03:38]} 29. Ba6 {[%emt 0:05:33]} Qa8 {[%emt 0:02:52]} 30. Bb7 {[%emt 0:01:29]} Qa3 {[%emt 0:02:51]} 31. Bxd5 {[%emt 0:07:09]} Qc1+ {[%emt 0:01:05]} 32. Kf2 {[%emt 0:00:07]} Qd2+ {[%emt 0:00:46]} 33. Re2 {[%emt 0:00:08]} Qxc3 {[%emt 0:00:12]} 34. Qb2 {[%emt 0:01:27]} Qxd4+ {[%emt 0:01:56]} 35. Qxd4+ {[%emt 0:00:52]} Nxd4 {[%emt 0:00:11]} 36. Rb2 {[%emt 0:00:37]} Nf6 {[%emt 0:00:38]} 37. Bb7 {[%emt 0:00:08]} Ba3 {[%emt 0:01:14]} 38. Rb1 {[%emt 0:00:45]} Rb8 {[%emt 0:01:31]} 39. Rgg1 {[%emt 0:01:24]} Nf5 {[%emt 0:04:03]} 40. Kg2 {[%emt 0:00:22]} Rd8 {[%emt 0:00:52]} 41. Kh1 {[%emt 0:01:47]} g4 {[%emt 0:03:23]} 42. Rgd1 {[%emt 0:02:33]} Rh8 {[%emt 0:01:01]} 43. Rd3 {[%emt 0:03:12]} Bc5 {[%emt 0:00:25]} 44. Kg2 {[%emt 0:02:53]} Ne3+ {[%emt 0:01:30]} 45. Kh1 {[%emt 0:01:45]} Nh5 {[%emt 0:03:08]} 46. Kg1 {[%emt 0:00:17]} Re8 {[%emt 0:10:38]} 47. Rb5 {[%emt 0:01:31]} Ba7 {[%emt 0:00:38]} 48. Ra5 {[%emt 0:01:22]} Bb6 {[%emt 0:01:29]} 49. Rb5 {[%emt 0:00:59]} Nc4+ {[%emt 0:00:56]} 50. Kf1 {[%emt 0:00:33]} Nf6 {[%emt 0:01:32]} 51. a4 {[%emt 0:02:38]} Ba7 {[%emt 0:05:53]} 52. a5 {[%emt 0:06:44]} Ne5 {[%emt 0:01:26]} 53. Rdb3 {[%emt 0:02:30]} gxf3 {[%emt 0:00:15]} 54. Bxf3 {[%emt 0:00:24]} Nxf3 {[%emt 0:01:08]} 55. Rxf3 {[%emt 0:00:16]} Ng4 {[%emt 0:00:07]} 56. Rb2 {[%emt 0:01:55]} Re5 {[%emt 0:05:32]} 57. Ra2 {[%emt 0:00:46]} Rh5 {[%emt 0:00:55]} 58. h4 {[%emt 0:01:06]} Rb5 {[%emt 0:00:07]} 59. Ke2 {[%emt 0:00:36]} Rb1 {[%emt 0:00:31]} 60. Rf1 {[%emt 0:01:04]} Rb5 {[%emt 0:00:34]} 61. Rf4 {[%emt 0:00:48]} Ne5 {[%emt 0:00:53]} 62. a6 {[%emt 0:00:28]} Rb3 {[%emt 0:00:19]} 63. Ra5 {[%emt 0:00:40]} Nc6 {[%emt 0:01:45]} 64. Rd5 {[%emt 0:00:27]} Re3+ {[%emt 0:01:21]} 65. Kd1 {[%emt 0:00:13]} Rxg3 {[%emt 0:00:39]} 66. Rd7 {[%emt 0:00:15]} Rg1+ {[%emt 0:02:23]} 67. Kc2 {[%emt 0:02:27]} Rg2+ {[%emt 0:04:03]} 68. Kb3 {[%emt 0:00:27]} Rg3+ {[%emt 0:01:16]} 69. Ka4 {[%emt 0:00:10]} Kg8 {[%emt 0:00:59]} 70. Rc4 {[%emt 0:01:32]} Ne5 {[%emt 0:01:02]} 71. Rc8+ {[%emt 0:00:11]} Kg7 {[%emt 0:00:04]} 72. Rxa7 {[%emt 0:00:08]} Rg1 {[%emt 0:01:07]} 73. Rc3 {[%emt 0:00:31]} Rh1 {[%emt 0:00:26]} 74. Rac7 {[%emt 0:01:27]} Rxh4+ {[%emt 0:00:41]} 75. Kb5 {[%emt 0:00:14]} Rh1 {[%emt 0:00:27]} 76. Ra3 {[%emt 0:00:42]} Rb1+ {[%emt 0:00:46]} 77. Ka4 {[%emt 0:01:11]} Rb8 {[%emt 0:00:28]} 78. a7 {[%emt 0:00:26]} Ra8 {[%emt 0:00:19]} 79. Kb5 {[%emt 0:00:12]} g5 {[%emt 0:00:12]} 80. Re7 {[%emt 0:01:02]} Kf6 {[%emt 0:00:18]} 81. Rb7 {[%emt 0:00:14]} g4 {[%emt 0:00:26]} 82. Rb8 {[%emt 0:00:21]} Rxa7 {[%emt 0:00:09]} 83. Rxa7 {[%emt 0:00:06]} Kf5 {[%emt 0:00:47]} 84. Rg8 {[%emt 0:01:03]} Kf4 {[%emt 0:00:24]} 85. Ra4+ {[%emt 0:00:08]} Ke3 {[%emt 0:01:15]} 86. Rg5 {[%emt 0:00:41]} 1-0

[Event "SWE-ch 2019"]
[Site "Eskilstuna"]
[Date "2019.07.12"]
[Round "7.4"]
[White "Smith, Axel"]
[Black "Johansson, Linus"]
[Result "1/2-1/2"]
[ECO "B31"]
[WhiteElo "2469"]
[BlackElo "2480"]
[Annotator "ChessBase"]
[PlyCount "102"]
[EventDate "2019.07.06"]
[EventType "tourn"]
[EventCountry "SWE"]
[SourceTitle "playchess.com"]
[Source "ChessBase"]
[SourceQuality "1"]
[TimeControl "40/5400+30:1800+30"]

1. e4 {[%emt 0:00:00]} c5 {[%emt 0:02:49]} 2. Nf3 {[%emt 0:00:00]} Nc6 {[%emt 0:00:04]} 3. Bb5 {[%emt 0:00:00]} g6 {[%emt 0:00:09]} 4. O-O {[%emt 0:00:00]} Bg7 {[%emt 0:00:31]} 5. c3 {[%emt 0:00:11]} Nh6 {[%emt 0:01:20]} 6. d4 {[%emt 0:01:33]} O-O {[%emt 0:07:00]} 7. dxc5 {[%emt 0:07:01]} f5 {[%emt 0:01:46]} 8. Nbd2 {[%emt 0:03:09]} Kh8 {[%emt 0:07:59]} 9. Bd3 {[%emt 0:04:44]} b6 {[%emt 0:03:55]} 10. Nb3 {[%emt 0:06:58]} bxc5 {[%emt 0:03:14]} 11. Nxc5 {[%emt 0:00:05]} d6 {[%emt 0:01:40]} 12. Nb3 {[%emt 0:00:40]} e5 {[%emt 0:01:45]} 13. Re1 {[%emt 0:14:09]} Be6 {[%emt 0:12:29]} 14. exf5 {[%emt 0:10:17]} gxf5 {[%emt 0:00:47]} 15. Nfd4 {[%emt 0:02:36]} Nxd4 {[%emt 0:12:28]} 16. Nxd4 {[%emt 0:00:09]} Bd7 {[%emt 0:00:23]} 17. Bxh6 {[%emt 0:17:59]} Bxh6 {[%emt 0:00:08]} 18. Qh5 {[%emt 0:00:12]} Qf6 {[%emt 0:00:55]} 19. Nxf5 {[%emt 0:01:21]} Bxf5 {[%emt 0:00:40]} 20. Bxf5 {[%emt 0:00:01]} Qxf5 {[%emt 0:00:09]} 21. Qxh6 {[%emt 0:00:03]} Qxf2+ {[%emt 0:00:11]} 22. Kh1 {[%emt 0:00:01]} Rf6 {[%emt 0:04:01]} 23. Qe3 {[%emt 0:04:45]} Rg8 {[%emt 0:02:39]} 24. Qxf2 {[%emt 0:00:56]} Rxf2 {[%emt 0:00:02]} 25. g3 {[%emt 0:00:32]} Rxb2 {[%emt 0:00:11]} 26. Reb1 {[%emt 0:00:55]} Rgb8 {[%emt 0:07:11]} 27. Rxb2 {[%emt 0:00:01]} Rxb2 {[%emt 0:00:08]} 28. Rd1 {[%emt 0:01:52]} Rb6 {[%emt 0:05:00]} 29. Kg2 {[%emt 0:01:11]} Kg7 {[%emt 0:00:08]} 30. Kf3 {[%emt 0:00:37]} Kf6 {[%emt 0:02:07]} 31. Ke4 {[%emt 0:01:54]} Ke6 {[%emt 0:01:21]} 32. Rd2 {[%emt 0:00:45]} a5 {[%emt 0:03:26]} 33. Rf2 {[%emt 0:10:09]} Rb1 {[%emt 0:12:53]} 34. Rf8 {[%emt 0:01:47]} Re1+ {[%emt 0:01:23]} 35. Kd3 {[%emt 0:00:03]} Rd1+ {[%emt 0:00:13]} 36. Ke3 {[%emt 0:03:54]} Re1+ {[%emt 0:02:25]} 37. Kd3 {[%emt 0:00:01]} Rh1 {[%emt 0:00:38]} 38. Re8+ {[%emt 0:01:12]} Kf5 {[%emt 0:00:32]} 39. Rf8+ {[%emt 0:02:14]} Ke6 {[%emt 0:00:11]} 40. Re8+ {[%emt 0:00:40]} Kf7 {[%emt 0:02:00]} 41. Rd8 {[%emt 0:33:28]} Ke7 {[%emt 0:30:24]} 42. Ra8 {[%emt 0:00:00]} Rxh2 {[%emt 0:00:00]} 43. Rxa5 {[%emt 0:00:00]} Rh3 {[%emt 0:00:00]} 44. Ra7+ {[%emt 0:00:00]} Kf6 {[%emt 0:00:00]} 45. Kc4 {[%emt 0:00:00]} Rxg3 {[%emt 0:00:00]} 46. Rxh7 {[%emt 0:00:00]} Ke6 {[%emt 0:00:00]} 47. Rh6+ {[%emt 0:00:00]} Kd7 {[%emt 0:00:00]} 48. Rh8 {[%emt 0:00:00]} Kc6 {[%emt 0:00:00]} 49. Rc8+ {[%emt 0:00:00]} Kb7 {[%emt 0:00:00]} 50. Rh8 {[%emt 0:00:00]} Kc6 {[%emt 0:00:00]} 51. Rc8+ {[%emt 0:00:00]} Kb7 {[%emt 0:00:00]} 1/2-1/2

[Event "SWE-ch 2019"]
[Site "Eskilstuna"]
[Date "2019.07.12"]
[Round "7.5"]
[White "Cramling, Pia"]
[Black "Lokander, Martin"]
[Result "1/2-1/2"]
[ECO "E03"]
[WhiteElo "2479"]
[BlackElo "2397"]
[Annotator "ChessBase"]
[PlyCount "143"]
[EventDate "2019.07.06"]
[EventType "tourn"]
[EventCountry "SWE"]
[SourceTitle "playchess.com"]
[Source "ChessBase"]
[SourceQuality "1"]
[TimeControl "40/5400+30:1800+30"]

1. Nf3 {[%emt 0:01:38]} d5 {[%emt 0:00:00]} 2. d4 {[%emt 0:00:12]} Nf6 {[%emt 0:00:05]} 3. c4 {[%emt 0:00:15]} e6 {[%emt 0:00:44]} 4. g3 {[%emt 0:00:41]} dxc4 {[%emt 0:00:52]} 5. Qa4+ {[%emt 0:00:42]} Nbd7 {[%emt 0:00:39]} 6. Bg2 {[%emt 0:02:34]} a6 {[%emt 0:01:56]} 7. Qxc4 {[%emt 0:00:30]} b5 {[%emt 0:00:31]} 8. Qd3 {[%emt 0:14:42]} Bb7 {[%emt 0:00:06]} 9. O-O {[%emt 0:00:14]} Be7 {[%emt 0:04:17]} 10. a4 {[%emt 0:01:33]} b4 {[%emt 0:04:19]} 11. Bg5 {[%emt 0:04:06]} c5 {[%emt 0:05:51]} 12. Nbd2 {[%emt 0:03:07]} O-O {[%emt 0:00:33]} 13. Nc4 {[%emt 0:14:21]} Be4 {[%emt 0:18:44]} 14. Qd1 {[%emt 0:03:07]} Rc8 {[%emt 0:01:56]} 15. Rc1 {[%emt 0:03:38]} cxd4 {[%emt 0:07:30]} 16. Nxd4 {[%emt 0:09:39]} Bxg2 {[%emt 0:00:18]} 17. Kxg2 {[%emt 0:00:07]} Nc5 {[%emt 0:03:12]} 18. Kg1 {[%emt 0:06:03]} Qd5 {[%emt 0:10:02]} 19. h4 {[%emt 0:01:40]} Nxa4 {[%emt 0:11:19]} 20. Qxa4 {[%emt 0:00:41]} Rxc4 {[%emt 0:01:29]} 21. Nc6 {[%emt 0:02:02]} Bd6 {[%emt 0:08:40]} 22. Qxa6 {[%emt 0:08:39]} Rxc1 23. Rxc1 {[%emt 0:00:09]} Ne4 {[%emt 0:04:09]} 24. Be3 {[%emt 0:04:40]} h6 {[%emt 0:02:28]} 25. Qc4 {[%emt 0:02:19]} Nc3 {[%emt 0:03:23]} 26. Qxd5 {[%emt 0:01:34]} Nxd5 {[%emt 0:00:03]} 27. Bc5 {[%emt 0:01:55]} Bxc5 {[%emt 0:00:38]} 28. Rxc5 {[%emt 0:00:04]} Ra8 {[%emt 0:02:03]} 29. Rb5 {[%emt 0:04:05]} Ra1+ {[%emt 0:04:03]} 30. Kg2 {[%emt 0:00:04]} Rb1 {[%emt 0:00:19]} 31. e4 {[%emt 0:00:20]} Nf6 {[%emt 0:00:06]} 32. Rb8+ {[%emt 0:00:57]} Kh7 {[%emt 0:00:04]} 33. Rxb4 {[%emt 0:00:06]} Ng4 {[%emt 0:01:54]} 34. Rb7 {[%emt 0:05:27]} Rc1 {[%emt 0:00:50]} 35. Nd4 {[%emt 0:02:43]} Rc4 {[%emt 0:00:55]} 36. Nb5 {[%emt 0:02:17]} f5 {[%emt 0:02:10]} 37. exf5 {[%emt 0:00:21]} exf5 {[%emt 0:00:02]} 38. Nc3 {[%emt 0:00:34]} f4 {[%emt 0:00:38]} 39. Re7 {[%emt 0:00:28]} fxg3 {[%emt 0:00:33]} 40. fxg3 {[%emt 0:00:16]} Rb4 {[%emt 0:01:52]} 41. Re2 {[%emt 0:30:24]} Nf6 {[%emt 0:00:57]} 42. Na2 {[%emt 0:00:00]} Rb3 {[%emt 0:03:57]} 43. Nc1 {[%emt 0:00:00]} Rb5 {[%emt 0:00:17]} 44. Kf3 {[%emt 0:00:00]} g5 {[%emt 0:00:23]} 45. hxg5 {[%emt 0:00:00]} Rf5+ {[%emt 0:01:18]} 46. Kg2 {[%emt 0:00:00]} Rxg5 {[%emt 0:00:03]} 47. Nd3 {[%emt 0:00:00]} h5 {[%emt 0:03:24]} 48. Kh3 {[%emt 0:00:00]} h4 {[%emt 0:05:14]} 49. gxh4 {[%emt 0:00:00]} Rd5 {[%emt 0:00:11]} 50. Ne5 {[%emt 0:00:00]} Rb5 {[%emt 0:02:27]} 51. Nf3 {[%emt 0:00:00]} Rb3 {[%emt 0:00:50]} 52. Kg2 {[%emt 0:00:00]} Nd5 {[%emt 0:00:23]} 53. Kg3 {[%emt 0:00:00]} Ne3 {[%emt 0:02:12]} 54. Kf4 {[%emt 0:00:00]} Nc4 {[%emt 0:02:48]} 55. Ng5+ {[%emt 0:01:17]} Kg7 {[%emt 0:00:46]} 56. Re7+ {[%emt 0:00:32]} Kf8 {[%emt 0:00:33]} 57. Rc7 {[%emt 0:00:44]} Nxb2 {[%emt 0:04:43]} 58. h5 {[%emt 0:01:06]} Nd3+ {[%emt 0:03:42]} 59. Kf5 {[%emt 0:00:20]} Rb5+ {[%emt 0:00:32]} 60. Kf6 {[%emt 0:02:08]} Rb6+ {[%emt 0:00:08]} 61. Ne6+ {[%emt 0:01:22]} Kg8 {[%emt 0:00:34]} 62. Ke7 {[%emt 0:02:28]} Kh7 {[%emt 0:01:13]} 63. Rc8 {[%emt 0:00:57]} Rb7+ {[%emt 0:01:15]} 64. Kf6 {[%emt 0:00:11]} Rb6 {[%emt 0:00:20]} 65. Rc4 {[%emt 0:01:23]} Ra6 {[%emt 0:00:40]} 66. Ke7 {[%emt 0:00:33]} Kh6 {[%emt 0:01:15]} 67. Rd4 {[%emt 0:00:18]} Ne5 {[%emt 0:01:11]} 68. Kf6 {[%emt 0:00:40]} Nf3 {[%emt 0:00:25]} 69. Rd8 {[%emt 0:00:36]} Kxh5 {[%emt 0:01:24]} 70. Rh8+ {[%emt 0:00:32]} Kg4 {[%emt 0:00:15]} 71. Rg8+ {[%emt 0:00:11]} Kh3 {[%emt 0:00:10]} 72. Rh8+ {[%emt 0:00:10]} 1/2-1/2